[Event "*** Titled Tuesday Blitz"]
[Site "Chess.com"]
[Date "2021.02.16"]
[Round "1"]
[White "CSB7"]
[Black "HrvojeZagreb"]
[Result "0-1"]
[WhiteElo "2528"]
[BlackElo "2237"]
[TimeControl "180+1"]
[EndTime "10:08:07 PST"]
[Termination "HrvojeZagreb won by resignation"]

1. d4 {[%clk 0:03:00.7]} 1... e6 {[%clk 0:02:59]} 2. Nf3 {[%clk 0:02:59]} 2...
f5 {[%clk 0:02:59]} 3. c4 {[%clk 0:02:52.8]} 3... Nf6 {[%clk 0:02:59]} 4. Nc3
{[%clk 0:02:53.3]} 4... Bb4 {[%clk 0:02:58.8]} 5. Qb3 {[%clk 0:02:51.5]} 5...
Bxc3+ {[%clk 0:02:56.5]} 6. Qxc3 {[%clk 0:02:51.1]} 6... O-O {[%clk 0:02:57.4]}
7. g3 {[%clk 0:02:51.2]} 7... d6 {[%clk 0:02:57.1]} 8. Bg2 {[%clk 0:02:51.5]}
8... Qe8 {[%clk 0:02:51.3]} 9. O-O {[%clk 0:02:49.9]} 9... Nbd7 {[%clk
0:02:42.4]} 10. b3 {[%clk 0:02:43]} 10... e5 {[%clk 0:02:41.1]} 11. dxe5 {[%clk
0:02:37]} 11... dxe5 {[%clk 0:02:42]} 12. Ba3 {[%clk 0:02:22.9]} 12... c5 {[%clk
0:02:34.9]} 13. Rad1 {[%clk 0:02:13]} 13... e4 {[%clk 0:02:27.7]} 14. Ne1 {[%clk
0:02:05.1]} 14... b6 {[%clk 0:02:24]} 15. Nc2 {[%clk 0:02:03.2]} 15... Ne5
{[%clk 0:02:12]} 16. Bb2 {[%clk 0:01:56.2]} 16... Nc6 {[%clk 0:02:05.5]} 17. Rd6
{[%clk 0:01:46.8]} 17... Bb7 {[%clk 0:01:57.8]} 18. Rfd1 {[%clk 0:01:42.7]}
18... Rd8 {[%clk 0:01:54.1]} 19. Rxd8 {[%clk 0:01:36.3]} 19... Nxd8 {[%clk
0:01:55]} 20. Ne3 {[%clk 0:01:36.3]} 20... Ne6 {[%clk 0:01:37.3]} 21. Nxf5
{[%clk 0:01:27.3]} 21... Qh5 {[%clk 0:01:21.9]} 22. Nd6 {[%clk 0:01:11.5]} 22...
Ba8 {[%clk 0:01:20.2]} 23. h3 {[%clk 0:00:42.3]} 23... Nd4 {[%clk 0:01:03.3]}
24. Rxd4 {[%clk 0:00:21.5]} 24... cxd4 {[%clk 0:01:02.1]} 25. Qxd4 {[%clk
0:00:22.4]} 25... Qxe2 {[%clk 0:01:00.1]} 26. Nf5 {[%clk 0:00:11.6]} 26... e3
{[%clk 0:00:30.5]} 27. Nxe3 {[%clk 0:00:09]} 27... Bxg2 {[%clk 0:00:27.9]} 28.
Kxg2 {[%clk 0:00:08.2]} 28... h6 {[%clk 0:00:22.3]} 29. h4 {[%clk 0:00:06.2]}
29... Rf7 {[%clk 0:00:21.7]} 30. a4 {[%clk 0:00:04.7]} 30... Nh5 {[%clk
0:00:16.1]} 31. Nd5 {[%clk 0:00:03.3]} 31... Qf3+ {[%clk 0:00:14.6]} 32. Kg1
{[%clk 0:00:03.2]} 32... Nf6 {[%clk 0:00:11.6]} 33. Nxf6+ {[%clk 0:00:03.1]}
33... Rxf6 {[%clk 0:00:12.2]} 34. Qd2 {[%clk 0:00:02.7]} 34... Rf7 {[%clk
0:00:11.6]} 35. Bc3 {[%clk 0:00:03.1]} 35... Qf5 {[%clk 0:00:11.2]} 36. a5
{[%clk 0:00:03.2]} 36... bxa5 {[%clk 0:00:10.5]} 37. Bxa5 {[%clk 0:00:03.2]}
37... Qb1+ {[%clk 0:00:10.8]} 38. Kg2 {[%clk 0:00:03.1]} 38... Qxb3 {[%clk
0:00:11.3]} 39. Qd5 {[%clk 0:00:03.3]} 39... Qb8 {[%clk 0:00:08.5]} 40. c5
{[%clk 0:00:02.7]} 40... Qf8 {[%clk 0:00:08]} 41. Be1 {[%clk 0:00:01.7]} 41...
Kh8 {[%clk 0:00:08.1]} 42. Qb3 {[%clk 0:00:01.9]} 42... Rc7 {[%clk 0:00:07.6]}
43. Qc2 {[%clk 0:00:02.3]} 43... Qxc5 {[%clk 0:00:07.7]} 44. Qe4 {[%clk
0:00:02.2]} 44... Qc6 {[%clk 0:00:07.5]} 45. Qxc6 {[%clk 0:00:02.2]} 45... Rxc6
{[%clk 0:00:08.4]} 46. Kf3 {[%clk 0:00:02.5]} 46... Ra6 {[%clk 0:00:09.3]} 47.
Bc3 {[%clk 0:00:02.3]} 47... Ra2 {[%clk 0:00:10.2]} 48. Ke4 {[%clk 0:00:02.5]}
48... a5 {[%clk 0:00:11.1]} 49. Bd4 {[%clk 0:00:03]} 49... a4 {[%clk 0:00:12]}
50. f4 {[%clk 0:00:03.5]} 50... a3 {[%clk 0:00:12.9]} 51. g4 {[%clk 0:00:04]}
51... Rg2 {[%clk 0:00:13.2]} 52. Kf5 {[%clk 0:00:04]} 52... a2 {[%clk
0:00:13.2]} 53. Kg6 {[%clk 0:00:04.6]} 53... Rxg4+ {[%clk 0:00:13]} 54. Kh5
{[%clk 0:00:03.2]} 54... Rxf4 {[%clk 0:00:13.1]} 55. Ba1 {[%clk 0:00:02.6]}
55... Rf1 {[%clk 0:00:13.6]} 56. Bxg7+ {[%clk 0:00:02.5]} 56... Kxg7 {[%clk
0:00:12.7]} 0-1

[Event "*** Titled Tuesday Blitz"]
[Site "Chess.com"]
[Date "2021.02.16"]
[Round "1"]
[White "Aleksandar-Topalov"]
[Black "Szparu"]
[Result "0-1"]
[WhiteElo "2356"]
[BlackElo "2662"]
[TimeControl "180+1"]
[EndTime "10:08:10 PST"]
[Termination "Szparu won on time"]

1. b3 {[%clk 0:03:00.9]} 1... d5 {[%clk 0:02:45.2]} 2. Bb2 {[%clk 0:03:00.3]}
2... Bg4 {[%clk 0:02:44.5]} 3. f3 {[%clk 0:02:59.2]} 3... Bf5 {[%clk 0:02:33.6]}
4. d4 {[%clk 0:02:58.1]} 4... Nf6 {[%clk 0:02:29.4]} 5. e3 {[%clk 0:02:58.1]}
5... e6 {[%clk 0:02:27.9]} 6. Bd3 {[%clk 0:02:57]} 6... Bd6 {[%clk 0:02:23.5]}
7. Ne2 {[%clk 0:02:54.9]} 7... O-O {[%clk 0:02:18.4]} 8. Ng3 {[%clk 0:02:54.3]}
8... Bg6 {[%clk 0:02:09]} 9. O-O {[%clk 0:02:52]} 9... c5 {[%clk 0:02:04]} 10.
Bxg6 {[%clk 0:02:36.3]} 10... hxg6 {[%clk 0:02:03.8]} 11. Nd2 {[%clk 0:02:32.2]}
11... Nc6 {[%clk 0:02:01.4]} 12. a3 {[%clk 0:02:26.8]} 12... Qb6 {[%clk
0:01:56]} 13. c3 {[%clk 0:02:20.6]} 13... e5 {[%clk 0:01:52.9]} 14. dxe5 {[%clk
0:02:10.6]} 14... Nxe5 {[%clk 0:01:52.6]} 15. Qe2 {[%clk 0:02:01.8]} 15... c4
{[%clk 0:01:48.6]} 16. b4 {[%clk 0:02:01.9]} 16... Nd3 {[%clk 0:01:48]} 17. Rab1
{[%clk 0:01:58.7]} 17... Rfe8 {[%clk 0:01:45.9]} 18. Rfe1 {[%clk 0:01:45.8]}
18... Nxe1 {[%clk 0:01:16.7]} 19. Rxe1 {[%clk 0:01:44.7]} 19... a5 {[%clk
0:01:16.8]} 20. Kh1 {[%clk 0:01:43]} 20... axb4 {[%clk 0:01:16.9]} 21. cxb4
{[%clk 0:01:43.4]} 21... Be5 {[%clk 0:01:12.5]} 22. Bxe5 {[%clk 0:01:33.4]}
22... Rxe5 {[%clk 0:01:13.4]} 23. Nb1 {[%clk 0:01:29.7]} 23... Rae8 {[%clk
0:01:12.6]} 24. Nf1 {[%clk 0:01:23.9]} 24... d4 {[%clk 0:01:08.7]} 25. Qxc4
{[%clk 0:01:23.4]} 25... dxe3 {[%clk 0:01:08.7]} 26. Nc3 {[%clk 0:01:18.5]}
26... Qe6 {[%clk 0:00:59.2]} 27. Qe2 {[%clk 0:01:05.3]} 27... Nd5 {[%clk
0:00:55.8]} 28. Ne4 {[%clk 0:01:03.1]} 28... f5 {[%clk 0:00:49.4]} 29. Ng5
{[%clk 0:01:02.1]} 29... Qf6 {[%clk 0:00:45.1]} 30. h4 {[%clk 0:01:02.2]} 30...
f4 {[%clk 0:00:40.8]} 31. Qc4 {[%clk 0:01:01.3]} 31... Qc6 {[%clk 0:00:38.9]}
32. Qa2 {[%clk 0:00:59.5]} 32... b5 {[%clk 0:00:36.1]} 33. Nh2 {[%clk
0:00:58.9]} 33... Qc4 {[%clk 0:00:35.9]} 34. Qb1 {[%clk 0:00:55.5]} 34... Rf5
{[%clk 0:00:26.1]} 35. Ng4 {[%clk 0:00:48]} 35... Nc3 {[%clk 0:00:23.7]} 36. Qc2
{[%clk 0:00:45.1]} 36... e2 {[%clk 0:00:21]} 37. Qd2 {[%clk 0:00:37.2]} 37...
Rd5 {[%clk 0:00:16.3]} 38. Qc2 {[%clk 0:00:30]} 38... Qd3 {[%clk 0:00:16.4]} 39.
Qb3 {[%clk 0:00:27.8]} 39... Ne4 {[%clk 0:00:12.9]} 40. Qa2 {[%clk 0:00:19.7]}
40... Nxg5 {[%clk 0:00:12.1]} 41. hxg5 {[%clk 0:00:19]} 41... Qc4 {[%clk
0:00:12.3]} 42. Qb1 {[%clk 0:00:17]} 42... Rxg5 {[%clk 0:00:12.3]} 43. Nf2
{[%clk 0:00:12.7]} 43... Rh5+ {[%clk 0:00:12]} 44. Kg1 {[%clk 0:00:12.8]} 44...
Rg5 {[%clk 0:00:06]} 45. Kh2 {[%clk 0:00:10.3]} 45... Qd4 {[%clk 0:00:05.5]} 46.
Nh3 {[%clk 0:00:09.1]} 46... Rf5 {[%clk 0:00:04.9]} 47. Qa2+ {[%clk 0:00:08.7]}
47... Qc4 {[%clk 0:00:04.8]} 48. Qd2 {[%clk 0:00:06.8]} 48... Re3 {[%clk
0:00:04.6]} 49. Nf2 {[%clk 0:00:04.8]} 49... Qc3 {[%clk 0:00:04.3]} 50. Qd8+
{[%clk 0:00:04.2]} 50... Rf8 {[%clk 0:00:04.6]} 51. Qd5+ {[%clk 0:00:03.5]}
51... Kh8 {[%clk 0:00:05.3]} 52. Ng4 {[%clk 0:00:02.8]} 52... Qxe1 {[%clk
0:00:05.4]} 53. Qg5 {[%clk 0:00:02.1]} 53... Qg3+ {[%clk 0:00:05.5]} 0-1

[Event "*** Titled Tuesday Blitz"]
[Site "Chess.com"]
[Date "2021.02.16"]
[Round "1"]
[White "Nils_03"]
[Black "swisspower96"]
[Result "0-1"]
[WhiteElo "2330"]
[BlackElo "2631"]
[TimeControl "180+1"]
[EndTime "10:08:14 PST"]
[Termination "swisspower96 won by resignation"]

1. e4 {[%clk 0:03:00.9]} 1... c5 {[%clk 0:02:59.4]} 2. Nf3 {[%clk 0:03:00.6]}
2... Nc6 {[%clk 0:02:59.9]} 3. Bb5 {[%clk 0:03:00.1]} 3... g6 {[%clk 0:02:59.4]}
4. Bxc6 {[%clk 0:03:00.2]} 4... dxc6 {[%clk 0:02:59.6]} 5. d3 {[%clk 0:03:00]}
5... Bg7 {[%clk 0:02:59.2]} 6. O-O {[%clk 0:03:00.1]} 6... e5 {[%clk 0:02:58.9]}
7. Nbd2 {[%clk 0:02:56.3]} 7... Qc7 {[%clk 0:02:55]} 8. a3 {[%clk 0:02:55.9]}
8... Nf6 {[%clk 0:02:51.1]} 9. b4 {[%clk 0:02:55.2]} 9... Nd7 {[%clk 0:02:45.6]}
10. Nc4 {[%clk 0:02:51.7]} 10... O-O {[%clk 0:02:43]} 11. Bd2 {[%clk 0:02:51.8]}
11... Re8 {[%clk 0:02:32.5]} 12. Bc3 {[%clk 0:02:50.8]} 12... b5 {[%clk
0:02:28]} 13. Ne3 {[%clk 0:02:46.4]} 13... h6 {[%clk 0:02:20.6]} 14. Qe2 {[%clk
0:02:40.8]} 14... Bb7 {[%clk 0:02:18.6]} 15. Rfb1 {[%clk 0:02:34.5]} 15... cxb4
{[%clk 0:02:12.8]} 16. axb4 {[%clk 0:02:33]} 16... c5 {[%clk 0:02:09.4]} 17.
bxc5 {[%clk 0:02:29]} 17... Nxc5 {[%clk 0:01:57.9]} 18. Ba5 {[%clk 0:02:23.4]}
18... Qd7 {[%clk 0:01:54.4]} 19. Nd2 {[%clk 0:02:02.3]} 19... Ne6 {[%clk
0:01:51]} 20. Nb3 {[%clk 0:01:58.2]} 20... Rac8 {[%clk 0:01:49.7]} 21. Bb4
{[%clk 0:01:42.4]} 21... a6 {[%clk 0:01:48.5]} 22. h3 {[%clk 0:01:35.9]} 22...
f5 {[%clk 0:01:45.4]} 23. exf5 {[%clk 0:01:33.3]} 23... Nd4 {[%clk 0:01:35.3]}
24. Qd1 {[%clk 0:01:17.8]} 24... gxf5 {[%clk 0:01:33.3]} 25. Nxd4 {[%clk
0:01:14.5]} 25... exd4 {[%clk 0:01:32.4]} 26. Nf1 {[%clk 0:01:14.3]} 26... Qc6
{[%clk 0:01:25.2]} 27. f3 {[%clk 0:01:08.6]} 27... Re6 {[%clk 0:00:56.4]} 28.
Ng3 {[%clk 0:01:05.7]} 28... Qd5 {[%clk 0:00:35.2]} 29. Nh5 {[%clk 0:00:53.6]}
29... Be5 {[%clk 0:00:27]} 30. Qd2 {[%clk 0:00:47.3]} 30... Rg6 {[%clk
0:00:24.7]} 31. Kf1 {[%clk 0:00:36.5]} 31... Rg5 {[%clk 0:00:19.3]} 32. Nf4
{[%clk 0:00:28.5]} 32... Bxf4 {[%clk 0:00:19.4]} 33. Qxf4 {[%clk 0:00:29.4]}
33... Rxc2 {[%clk 0:00:19.4]} 34. Re1 {[%clk 0:00:23.4]} 34... Rg7 {[%clk
0:00:04.4]} 35. Qxh6 {[%clk 0:00:20.2]} 35... Bc6 {[%clk 0:00:03.3]} 36. Qe6+
{[%clk 0:00:17]} 36... Qxe6 {[%clk 0:00:03.5]} 37. Rxe6 {[%clk 0:00:17.9]} 37...
Bd7 {[%clk 0:00:03.7]} 38. Re7 {[%clk 0:00:17.6]} 38... Rxe7 {[%clk 0:00:03.7]}
39. Bxe7 {[%clk 0:00:18.5]} 39... Bc8 {[%clk 0:00:03]} 40. Bf6 {[%clk
0:00:16.1]} 40... f4 {[%clk 0:00:03.5]} 41. Bxd4 {[%clk 0:00:16.1]} 41... b4
{[%clk 0:00:04.2]} 42. Be5 {[%clk 0:00:15.5]} 42... Bf5 {[%clk 0:00:04.4]} 43.
Bxf4 {[%clk 0:00:14.7]} 43... Bxd3+ {[%clk 0:00:04.9]} 44. Kg1 {[%clk
0:00:15.3]} 44... b3 {[%clk 0:00:05.5]} 45. Be5 {[%clk 0:00:12.8]} 45... b2
{[%clk 0:00:04.1]} 46. Bxb2 {[%clk 0:00:11.5]} 46... Rxb2 {[%clk 0:00:04.9]} 47.
Ra3 {[%clk 0:00:12]} 47... Bb5 {[%clk 0:00:05.3]} 48. Re3 {[%clk 0:00:11.3]}
48... a5 {[%clk 0:00:05.3]} 49. Re5 {[%clk 0:00:10.9]} 49... a4 {[%clk
0:00:05.4]} 50. Re7 {[%clk 0:00:10.8]} 50... a3 {[%clk 0:00:05.4]} 51. Ra7
{[%clk 0:00:11.4]} 51... a2 {[%clk 0:00:06]} 52. Kh2 {[%clk 0:00:11.7]} 52...
Bc4 {[%clk 0:00:06.8]} 53. f4 {[%clk 0:00:11.4]} 53... Rb1 {[%clk 0:00:07.5]}
54. f5 {[%clk 0:00:10.9]} 54... a1=Q {[%clk 0:00:07.9]} 55. Rxa1 {[%clk
0:00:10.3]} 55... Rxa1 {[%clk 0:00:08.8]} 56. Kg3 {[%clk 0:00:10.8]} 56... Kf7
{[%clk 0:00:09.7]} 57. Kh4 {[%clk 0:00:11.7]} 57... Kf6 {[%clk 0:00:10.6]} 58.
g4 {[%clk 0:00:12]} 58... Bd3 {[%clk 0:00:10.5]} 59. Kg3 {[%clk 0:00:12.9]}
59... Ra3 {[%clk 0:00:10.3]} 60. Kf4 {[%clk 0:00:13.8]} 60... Ra4+ {[%clk
0:00:10.3]} 61. Kg3 {[%clk 0:00:14.3]} 61... Bf1 {[%clk 0:00:10.9]} 62. h4
{[%clk 0:00:14.5]} 62... Be2 {[%clk 0:00:11.5]} 63. g5+ {[%clk 0:00:14.4]} 63...
Kxf5 {[%clk 0:00:11.8]} 0-1

[Event "*** Titled Tuesday Blitz"]
[Site "Chess.com"]
[Date "2021.02.16"]
[Round "1"]
[White "VladimirBelous"]
[Black "onnoelgersma"]
[Result "1-0"]
[WhiteElo "2809"]
[BlackElo "2419"]
[TimeControl "180+1"]
[EndTime "10:08:17 PST"]
[Termination "VladimirBelous won on time"]

1. c4 {[%clk 0:02:58.8]} 1... e6 {[%clk 0:02:59.3]} 2. Nf3 {[%clk 0:02:59.4]}
2... d5 {[%clk 0:02:59.3]} 3. g3 {[%clk 0:03:00.3]} 3... Nf6 {[%clk 0:02:59.4]}
4. Bg2 {[%clk 0:03:00.8]} 4... Be7 {[%clk 0:02:59.8]} 5. O-O {[%clk 0:03:01.3]}
5... O-O {[%clk 0:03:00.3]} 6. Qc2 {[%clk 0:03:01.2]} 6... c5 {[%clk 0:02:59.2]}
7. d4 {[%clk 0:03:00.4]} 7... cxd4 {[%clk 0:02:57.1]} 8. Nxd4 {[%clk 0:03:00.5]}
8... Nc6 {[%clk 0:02:57.6]} 9. Nxc6 {[%clk 0:02:59.7]} 9... bxc6 {[%clk
0:02:58.5]} 10. Rd1 {[%clk 0:02:58.9]} 10... Ba6 {[%clk 0:02:38.5]} 11. b3
{[%clk 0:02:55.7]} 11... Qb6 {[%clk 0:02:32.3]} 12. Nc3 {[%clk 0:02:54]} 12...
dxc4 {[%clk 0:02:13.4]} 13. Be3 {[%clk 0:02:53.5]} 13... Qb4 {[%clk 0:02:01.1]}
14. bxc4 {[%clk 0:02:43.1]} 14... Rad8 {[%clk 0:01:49.8]} 15. Bxa7 {[%clk
0:02:20.7]} 15... Qxc4 {[%clk 0:01:40.6]} 16. Bf1 {[%clk 0:02:18.7]} 16... Nd5
{[%clk 0:01:10.4]} 17. Rdc1 {[%clk 0:02:17.8]} 17... Bf6 {[%clk 0:01:03.6]} 18.
Nxd5 {[%clk 0:01:49]} 18... cxd5 {[%clk 0:01:01.9]} 19. Rab1 {[%clk 0:01:43.9]}
19... Qxc2 {[%clk 0:00:58.7]} 20. Rxc2 {[%clk 0:01:44.8]} 20... Bc4 {[%clk
0:00:59.1]} 21. e3 {[%clk 0:01:39.4]} 21... Ra8 {[%clk 0:00:53.6]} 22. Bxc4
{[%clk 0:01:33.3]} 22... Rxa7 {[%clk 0:00:47.3]} 23. Bb5 {[%clk 0:01:24.1]}
23... Rfa8 {[%clk 0:00:43]} 24. a4 {[%clk 0:01:23.5]} 24... g6 {[%clk
0:00:43.2]} 25. Rc6 {[%clk 0:01:11.1]} 25... Kg7 {[%clk 0:00:41.4]} 26. Kg2
{[%clk 0:01:04.1]} 26... d4 {[%clk 0:00:41.1]} 27. e4 {[%clk 0:01:00.9]} 27...
h5 {[%clk 0:00:35.7]} 28. f4 {[%clk 0:01:00.9]} 28... e5 {[%clk 0:00:31.3]} 29.
Kf3 {[%clk 0:00:57.9]} 29... h4 {[%clk 0:00:28.9]} 30. gxh4 {[%clk 0:00:44.3]}
30... exf4 {[%clk 0:00:28.3]} 31. h5 {[%clk 0:00:44.7]} 31... Rh8 {[%clk
0:00:22.9]} 32. hxg6 {[%clk 0:00:38.9]} 32... fxg6 {[%clk 0:00:20.4]} 33. Rb2
{[%clk 0:00:35.8]} 33... Rh3+ {[%clk 0:00:20]} 34. Kxf4 {[%clk 0:00:30.2]} 34...
d3 {[%clk 0:00:17.7]} 35. Rg2 {[%clk 0:00:25.7]} 35... g5+ {[%clk 0:00:15.5]}
36. Kf5 {[%clk 0:00:22.7]} 36... Rf3+ {[%clk 0:00:15.1]} 37. Ke6 {[%clk
0:00:19.2]} 37... Re7+ {[%clk 0:00:15.4]} 38. Kd6 {[%clk 0:00:18.4]} 38... Rxe4
{[%clk 0:00:14.5]} 39. Kc5 {[%clk 0:00:13.2]} 39... Re5+ {[%clk 0:00:13]} 40.
Kb6 {[%clk 0:00:13.4]} 40... Re7 {[%clk 0:00:11.9]} 41. Rd6 {[%clk 0:00:12.5]}
41... Be5 {[%clk 0:00:10.2]} 42. Rxg5+ {[%clk 0:00:11.4]} 42... Kf7 {[%clk
0:00:10]} 43. Rxd3 {[%clk 0:00:11.6]} 43... Rxd3 {[%clk 0:00:09.5]} 44. Bxd3
{[%clk 0:00:11.8]} 44... Bxh2 {[%clk 0:00:10]} 45. Bc4+ {[%clk 0:00:11.3]} 45...
Kf6 {[%clk 0:00:08.6]} 46. Rg2 {[%clk 0:00:11.5]} 46... Be5 {[%clk 0:00:08.4]}
47. a5 {[%clk 0:00:11.8]} 47... Bd4+ {[%clk 0:00:08.5]} 48. Kb5 {[%clk
0:00:11.9]} 48... Kf5 {[%clk 0:00:07.5]} 49. a6 {[%clk 0:00:12.2]} 49... Kf4
{[%clk 0:00:07.5]} 50. Kc6 {[%clk 0:00:11.3]} 50... Be3 {[%clk 0:00:07.6]} 51.
Bd5 {[%clk 0:00:11.4]} 51... Ba7 {[%clk 0:00:07.2]} 52. Rb2 {[%clk 0:00:11.2]}
52... Bd4 {[%clk 0:00:07.1]} 53. Rb1 {[%clk 0:00:08.9]} 53... Be3 {[%clk
0:00:06.9]} 54. Rf1+ {[%clk 0:00:08.7]} 54... Ke5 {[%clk 0:00:07]} 55. Re1
{[%clk 0:00:09.3]} 55... Kd4 {[%clk 0:00:07.3]} 56. Rd1+ {[%clk 0:00:08.7]}
56... Kc3 {[%clk 0:00:07.6]} 57. Bg2 {[%clk 0:00:06.9]} 57... Bd4 {[%clk
0:00:06.8]} 58. Bf1 {[%clk 0:00:06.6]} 58... Rg7 {[%clk 0:00:06.1]} 59. Rd3+
{[%clk 0:00:06.5]} 59... Kc4 {[%clk 0:00:02.6]} 60. Rg3+ {[%clk 0:00:06.7]} 1-0

[Event "*** Titled Tuesday Blitz"]
[Site "Chess.com"]
[Date "2021.02.16"]
[Round "1"]
[White "GiorgianBarbosa"]
[Black "AlexTriapishko"]
[Result "0-1"]
[WhiteElo "2428"]
[BlackElo "2839"]
[TimeControl "180+1"]
[EndTime "10:08:18 PST"]
[Termination "AlexTriapishko won by checkmate"]

1. d4 {[%clk 0:02:59.3]} 1... Nf6 {[%clk 0:02:58.9]} 2. Nf3 {[%clk 0:02:58.5]}
2... d5 {[%clk 0:02:53]} 3. Bf4 {[%clk 0:02:54.1]} 3... c5 {[%clk 0:02:49.3]} 4.
c3 {[%clk 0:02:52.8]} 4... Nc6 {[%clk 0:02:49.1]} 5. e3 {[%clk 0:02:52.9]} 5...
e6 {[%clk 0:02:45.6]} 6. Bd3 {[%clk 0:02:49.3]} 6... Nh5 {[%clk 0:02:44.8]} 7.
Bg3 {[%clk 0:02:48.7]} 7... g6 {[%clk 0:02:40.2]} 8. Nbd2 {[%clk 0:02:44.9]}
8... Be7 {[%clk 0:02:35.6]} 9. O-O {[%clk 0:02:37.1]} 9... Nxg3 {[%clk
0:02:27.2]} 10. hxg3 {[%clk 0:02:36.8]} 10... O-O {[%clk 0:02:20.4]} 11. Qe2
{[%clk 0:02:35.3]} 11... Qb6 {[%clk 0:02:17.6]} 12. Rab1 {[%clk 0:02:29.4]}
12... a5 {[%clk 0:02:13.3]} 13. a3 {[%clk 0:02:09.1]} 13... a4 {[%clk
0:02:06.9]} 14. Rfd1 {[%clk 0:01:50.3]} 14... Rd8 {[%clk 0:01:33.1]} 15. Bc2
{[%clk 0:01:27.8]} 15... Bd7 {[%clk 0:01:13.1]} 16. Bd3 {[%clk 0:01:24.1]} 16...
Be8 {[%clk 0:01:11.7]} 17. Nf1 {[%clk 0:01:14.1]} 17... Bf6 {[%clk 0:01:02.2]}
18. N1h2 {[%clk 0:01:12.7]} 18... Bg7 {[%clk 0:01:00.7]} 19. g4 {[%clk
0:01:12.9]} 19... h6 {[%clk 0:00:41.7]} 20. g5 {[%clk 0:01:12.5]} 20... hxg5
{[%clk 0:00:41.2]} 21. Nxg5 {[%clk 0:01:13.1]} 21... e5 {[%clk 0:00:36]} 22.
dxe5 {[%clk 0:01:06.5]} 22... Nxe5 {[%clk 0:00:32.8]} 23. Bc2 {[%clk 0:01:04.5]}
23... Bb5 {[%clk 0:00:31.2]} 24. Qe1 {[%clk 0:00:59.6]} 24... Bc4 {[%clk
0:00:27.1]} 25. Nhf3 {[%clk 0:00:56.1]} 25... Qf6 {[%clk 0:00:11.3]} 26. Nxe5
{[%clk 0:00:51.4]} 26... Qxe5 {[%clk 0:00:12.2]} 27. Nf3 {[%clk 0:00:51.4]}
27... Qe7 {[%clk 0:00:12.5]} 28. Rd2 {[%clk 0:00:41.8]} 28... b5 {[%clk
0:00:09.9]} 29. Rbd1 {[%clk 0:00:40.9]} 29... b4 {[%clk 0:00:10.4]} 30. axb4
{[%clk 0:00:33.7]} 30... cxb4 {[%clk 0:00:09.8]} 31. cxb4 {[%clk 0:00:34.1]}
31... Bxb2 {[%clk 0:00:07.3]} 32. Bxg6 {[%clk 0:00:21.4]} 32... Bc3 {[%clk
0:00:07.5]} 33. Bb1 {[%clk 0:00:18.8]} 33... a3 {[%clk 0:00:07.9]} 34. Nd4
{[%clk 0:00:12]} 34... a2 {[%clk 0:00:07.1]} 35. Bxa2 {[%clk 0:00:12]} 35...
Rxa2 {[%clk 0:00:06.8]} 36. Nc6 {[%clk 0:00:12.1]} 36... Qe8 {[%clk 0:00:07.2]}
37. Nxd8 {[%clk 0:00:11.9]} 37... Rxd2 {[%clk 0:00:03.7]} 38. Rxd2 {[%clk
0:00:11.2]} 38... Bxd2 {[%clk 0:00:03.7]} 39. Qxd2 {[%clk 0:00:10.9]} 39... Qxd8
{[%clk 0:00:04.6]} 40. e4 {[%clk 0:00:10]} 40... d4 {[%clk 0:00:04]} 41. g3
{[%clk 0:00:07.1]} 41... d3 {[%clk 0:00:04.2]} 42. e5 {[%clk 0:00:07.7]} 42...
Qd4 {[%clk 0:00:03.3]} 43. Qg5+ {[%clk 0:00:07.3]} 43... Kf8 {[%clk 0:00:03.8]}
44. Qh6+ {[%clk 0:00:07.6]} 44... Ke8 {[%clk 0:00:04.2]} 45. Qh8+ {[%clk
0:00:07.5]} 45... Kd7 {[%clk 0:00:03.6]} 46. Qb8 {[%clk 0:00:07.5]} 46... d2
{[%clk 0:00:02.4]} 47. Qb7+ {[%clk 0:00:08]} 47... Ke6 {[%clk 0:00:03]} 48. Qc8+
{[%clk 0:00:07.7]} 48... Kxe5 {[%clk 0:00:03.1]} 49. Qc7+ {[%clk 0:00:07.3]}
49... Kf5 {[%clk 0:00:02.5]} 50. Qc8+ {[%clk 0:00:06.1]} 50... Be6 {[%clk
0:00:03.1]} 51. Qc2+ {[%clk 0:00:05.2]} 51... Kf6 {[%clk 0:00:03.7]} 52. Qd1
{[%clk 0:00:04.9]} 52... Bg4 {[%clk 0:00:04.3]} 53. Qa1 {[%clk 0:00:03.4]} 53...
d1=Q+ {[%clk 0:00:04.4]} 54. Qxd1 {[%clk 0:00:03.1]} 54... Qxd1+ {[%clk
0:00:05.3]} 55. Kh2 {[%clk 0:00:03.9]} 55... Bf3 {[%clk 0:00:06.2]} 56. Kh3
{[%clk 0:00:04]} 56... Qh1# {[%clk 0:00:07.1]} 0-1